[Event "IIFL Wealth 4th Mumbai GM"]
[Site "Mumbai"]
[Date "2019.01.04"]
[Round "6"]
[White "Divya Deshmukh"]
[Black "Pranav Vijay"]
[Result "1-0"]
[ECO "C57"]
[WhiteElo "2190"]
[BlackElo "2265"]
[Annotator "NA"]
[PlyCount "121"]
[EventDate "2018.12.30"]
[EventType "swiss"]
[EventCountry "IND"]
[SourceTitle "playchess.com"]
[Source "ChessBase"]
[SourceQuality "1"]
[TimeControl "40/5400+30:1800+30"]

1. e4 {[%emt 0:00:00]} e5 {[%emt 0:02:01]} 2. Nf3 {[%emt 0:00:08]} Nc6 {[%emt 0:00:14]} 3. Bc4 {[%emt 0:00:03]} Nf6 {[%emt 0:00:16]} 4. Ng5 {[%emt 0:00:10]} d5 {[%emt 0:00:50]} 5. exd5 {[%emt 0:00:09]} Nd4 {[%emt 0:03:00]} 6. c3 {[%emt 0:06:40]} Nf5 {[%emt 0:04:29]} 7. O-O {[%emt 0:06:08]} Nd6 {[%emt 0:01:23]} 8. d3 {[%emt 0:04:14]} Be7 {[%emt 0:03:59]} 9. Nd2 {[%emt 0:08:03]} O-O {[%emt 0:12:31]} 10. Nge4 {[%emt 0:05:12]} Nd7 {[%emt 0:01:09]} 11. Nxd6 {[%emt 0:05:12]} cxd6 {[%emt 0:00:20]} 12. f4 {[%emt 0:07:40]} exf4 {[%emt 0:00:19]} 13. Nf3 {[%emt 0:01:38]} g5 {[%emt 0:01:37]} 14. d4 {[%emt 0:02:33]} Re8 {[%emt 0:01:54]} 15. Bd3 {[%emt 0:02:57]} Nf8 {[%emt 0:02:07]} 16. h3 {[%emt 0:00:05]} Ng6 {[%emt 0:00:54]} 17. Nh2 {[%emt 0:00:30]} Kg7 {[%emt 0:02:46]} 18. Bd2 {[%emt 0:02:12]} Bf6 {[%emt 0:02:37]} 19. Kh1 {[%emt 0:02:40]} Bd7 {[%emt 0:15:31]} 20. Qh5 {[%emt 0:08:20]} Qa5 {[%emt 0:01:15]} 21. Rf2 {[%emt 0:09:35]} Re7 {[%emt 0:05:40]} 22. b4 {[%emt 0:04:10]} Qc7 {[%emt 0:04:17]} 23. Raf1 {[%emt 0:00:50]} h6 {[%emt 0:00:41]} 24. g3 {[%emt 0:04:30]} Rh8 {[%emt 0:06:42]} 25. gxf4 {[%emt 0:02:22]} gxf4 {[%emt 0:00:33]} 26. Bxf4 {[%emt 0:15:40]} Qxc3 {[%emt 0:00:08]} 27. Bxd6 {[%emt 0:00:28]} Qxd3 {[%emt 0:00:09]} 28. Rxf6 {[%emt 0:00:14]} Rhe8 {[%emt 0:01:26]} 29. Bxe7 {[%emt 0:00:09]} Rxe7 {[%emt 0:00:01]} 30. Qf3 {[%emt 0:00:31]} Qxf3+ {[%emt 0:00:07]} 31. R6xf3 {[%emt 0:00:06]} Bb5 {[%emt 0:00:05]} 32. Rc1 {[%emt 0:00:43]} Rd7 {[%emt 0:00:47]} 33. Kg1 {[%emt 0:02:03]} h5 {[%emt 0:02:19]} 34. Rf5 {[%emt 0:00:29]} Bd3 {[%emt 0:00:07]} 35. Rg5 {[%emt 0:00:34]} Kh6 {[%emt 0:00:16]} 36. Rg3 {[%emt 0:00:28]} Be4 {[%emt 0:00:09]} 37. Ra3 {[%emt 0:00:27]} Bxd5 {[%emt 0:00:11]} 38. Rxa7 {[%emt 0:00:34]} Nf4 {[%emt 0:00:01]} 39. Rc8 {[%emt 0:00:29]} Re7 {[%emt 0:00:14]} 40. Ra3 {[%emt 0:00:00]} Re2 {[%emt 0:00:00]} 41. Rg3 {[%emt 0:07:44]} Ng6 {[%emt 0:01:09]} 42. Rd8 {[%emt 0:03:15]} Bxa2 {[%emt 0:02:15]} 43. Nf3 {[%emt 0:03:07]} Re3 {[%emt 0:02:16]} 44. Kf2 {[%emt 0:00:25]} Rb3 {[%emt 0:00:10]} 45. d5 {[%emt 0:02:27]} Rb2+ {[%emt 0:00:58]} 46. Ke1 {[%emt 0:00:32]} Rb1+ {[%emt 0:08:26]} 47. Kd2 {[%emt 0:00:16]} Kg7 {[%emt 0:00:06]} 48. d6 {[%emt 0:01:26]} Bb3 {[%emt 0:01:33]} 49. d7 {[%emt 0:00:54]} Rd1+ {[%emt 0:00:10]} 50. Kc3 {[%emt 0:00:03]} Ba4 {[%emt 0:02:53]} 51. Nd4 {[%emt 0:00:05]} Bxd7 {[%emt 0:00:21]} 52. Rxd7 {[%emt 0:00:05]} Kf6 {[%emt 0:00:04]} 53. Rf3+ {[%emt 0:00:07]} Ke5 {[%emt 0:00:04]} 54. Nc6+ {[%emt 0:00:04]} bxc6 {[%emt 0:00:07]} 55. Rxd1 {[%emt 0:00:04]} f5 {[%emt 0:00:05]} 56. Re1+ {[%emt 0:00:24]} Kd5 {[%emt 0:00:06]} 57. Rxf5+ {[%emt 0:00:03]} Kd6 {[%emt 0:00:07]} 58. Rf6+ {[%emt 0:00:03]} Kc7 {[%emt 0:00:02]} 59. Rxg6 {[%emt 0:00:04]} Kc8 {[%emt 0:00:05]} 60. Rg7 {[%emt 0:00:04]} Kb8 {[%emt 0:00:03]} 61. Re8# {[%emt 0:00:04]} 1-0

[Event "IIFL Wealth 4th Mumbai GM"]
[Site "Mumbai"]
[Date "2019.01.04"]
[Round "6"]
[White "Safranska, Anda"]
[Black "Nayem, Haque"]
[Result "1/2-1/2"]
[ECO "C00"]
[WhiteElo "2189"]
[BlackElo "2083"]
[Annotator "NA"]
[PlyCount "118"]
[EventDate "2018.12.30"]
[EventType "swiss"]
[EventCountry "IND"]
[SourceTitle "playchess.com"]
[Source "ChessBase"]
[SourceQuality "1"]
[TimeControl "40/5400+30:1800+30"]

1. e4 {[%emt 0:00:00]} e6 {[%emt 0:00:00]} 2. d3 {[%emt 0:00:00]} c5 {[%emt 0:00:00]} 3. g3 {[%emt 0:00:01]} Nc6 {[%emt 0:00:00]} 4. Bg2 {[%emt 0:00:08]} d6 {[%emt 0:00:10]} 5. f4 {[%emt 0:00:48]} Qc7 {[%emt 0:00:12]} 6. Nf3 {[%emt 0:00:10]} Bd7 {[%emt 0:00:20]} 7. c3 {[%emt 0:00:24]} Nf6 {[%emt 0:00:07]} 8. Na3 {[%emt 0:00:52]} a6 {[%emt 0:00:37]} 9. O-O {[%emt 0:00:37]} Be7 {[%emt 0:00:01]} 10. Qe2 {[%emt 0:00:36]} O-O {[%emt 0:01:34]} 11. Nc2 {[%emt 0:01:27]} Rab8 {[%emt 0:00:51]} 12. h3 {[%emt 0:02:52]} b5 {[%emt 0:00:21]} 13. a3 {[%emt 0:00:50]} Na5 {[%emt 0:01:26]} 14. Nd2 {[%emt 0:04:39]} Nc6 {[%emt 0:16:28]} 15. g4 {[%emt 0:01:47]} e5 {[%emt 0:05:07]} 16. f5 {[%emt 0:02:22]} Ne8 {[%emt 0:00:08]} 17. Nf3 {[%emt 0:02:05]} f6 {[%emt 0:00:15]} 18. h4 {[%emt 0:01:25]} Na5 {[%emt 0:00:40]} 19. Be3 {[%emt 0:00:20]} Bc6 {[%emt 0:04:57]} 20. Nd2 {[%emt 0:01:26]} Qd8 {[%emt 0:02:39]} 21. b4 {[%emt 0:01:35]} Nb7 {[%emt 0:00:13]} 22. c4 {[%emt 0:00:22]} a5 {[%emt 0:00:43]} 23. cxb5 {[%emt 0:00:19]} Bd7 {[%emt 0:04:34]} 24. bxc5 {[%emt 0:23:00]} Bxb5 {[%emt 0:00:18]} 25. a4 {[%emt 0:00:30]} Ba6 {[%emt 0:00:38]} 26. cxd6 {[%emt 0:00:38]} Bxd6 {[%emt 0:02:00]} 27. Nc4 {[%emt 0:04:43]} Bxc4 {[%emt 0:01:01]} 28. dxc4 {[%emt 0:00:06]} Qc7 {[%emt 0:00:31]} 29. Na3 {[%emt 0:09:03]} Bxa3 {[%emt 0:02:43]} 30. Rxa3 {[%emt 0:00:15]} Nc5 {[%emt 0:00:10]} 31. Rd1 {[%emt 0:04:05]} Nd6 {[%emt 0:01:18]} 32. Qc2 {[%emt 0:01:48]} Rb4 {[%emt 0:05:19]} 33. Rd5 {[%emt 0:04:47]} Rxc4 {[%emt 0:08:49]} 34. Qa2 {[%emt 0:05:51]} Ncb7 {[%emt 0:01:28]} 35. Rad3 {[%emt 0:05:35]} Rc2 {[%emt 0:12:17]} 36. Qb3 {[%emt 0:12:17]} Qc4 {[%emt 0:14:55]} 37. Qb6 {[%emt 0:00:28]} Qa2 {[%emt 0:03:39]} 38. Bf1 {[%emt 0:03:32]} Rb2 {[%emt 0:00:27]} 39. Qa6 {[%emt 0:00:10]} Rb1 {[%emt 0:07:37]} 40. Rxd6 {[%emt 0:00:00]} Qe2 {[%emt 0:00:00]} 41. Qc4+ {[%emt 0:07:06]} Kh8 {[%emt 0:01:14]} 42. Bc1 {[%emt 0:00:09]} Qxg4+ {[%emt 0:02:00]} 43. Bg2 {[%emt 0:06:21]} Nxd6 {[%emt 0:00:06]} 44. Rxd6 {[%emt 0:00:04]} Qxh4 {[%emt 0:10:52]} 45. Rd1 {[%emt 0:03:30]} Qg4 {[%emt 0:01:40]} 46. Qc2 {[%emt 0:01:09]} Rb4 {[%emt 0:00:50]} 47. Re1 {[%emt 0:02:56]} Rg8 {[%emt 0:00:37]} 48. Bd2 {[%emt 0:00:23]} Rbb8 {[%emt 0:01:31]} 49. Bxa5 {[%emt 0:04:27]} g6 {[%emt 0:00:05]} 50. fxg6 {[%emt 0:01:56]} Rxg6 {[%emt 0:00:02]} 51. Re2 {[%emt 0:01:21]} Rc8 {[%emt 0:03:30]} 52. Qb2 {[%emt 0:00:58]} Ra8 {[%emt 0:00:32]} 53. Be1 {[%emt 0:01:19]} Rxa4 {[%emt 0:01:29]} 54. Kf1 {[%emt 0:00:12]} Ra8 {[%emt 0:00:33]} 55. Rf2 {[%emt 0:03:00]} Rag8 {[%emt 0:00:39]} 56. Qb3 {[%emt 0:00:51]} Rd8 {[%emt 0:08:21]} 57. Bf3 Qh3+ 58. Ke2 h5 59. Qb6 Qc8 1/2-1/2

[Event "IIFL Wealth 4th Mumbai GM"]
[Site "Mumbai"]
[Date "2019.01.04"]
[Round "6"]
[White "Subhayan Kundu"]
[Black "Mohammad Fahad, Rahman"]
[Result "0-1"]
[ECO "B41"]
[WhiteElo "2185"]
[BlackElo "2381"]
[Annotator "NA"]
[PlyCount "120"]
[EventDate "2018.12.30"]
[EventType "swiss"]
[EventCountry "IND"]
[SourceTitle "playchess.com"]
[Source "ChessBase"]
[SourceQuality "1"]
[TimeControl "40/5400+30:1800+30"]

1. e4 {[%emt 0:00:00]} c5 {[%emt 0:00:00]} 2. Nf3 {[%emt 0:00:00]} e6 {[%emt 0:00:00]} 3. d4 {[%emt 0:00:01]} cxd4 {[%emt 0:00:02]} 4. Nxd4 {[%emt 0:00:03]} a6 {[%emt 0:00:22]} 5. c4 {[%emt 0:00:11]} Nf6 {[%emt 0:00:19]} 6. Nc3 {[%emt 0:00:05]} Bb4 {[%emt 0:00:15]} 7. Qd3 {[%emt 0:00:05]} Qc7 {[%emt 0:00:53]} 8. a3 {[%emt 0:00:05]} Bxc3+ {[%emt 0:00:44]} 9. Qxc3 {[%emt 0:00:01]} O-O {[%emt 0:05:28]} 10. Bd3 {[%emt 0:18:55]} Nc6 {[%emt 0:00:53]} 11. Nxc6 {[%emt 0:01:28]} Qxc6 {[%emt 0:01:14]} 12. Qd4 {[%emt 0:01:54]} d6 {[%emt 0:05:54]} 13. O-O {[%emt 0:14:50]} e5 {[%emt 0:06:01]} 14. Qe3 {[%emt 0:00:03]} Be6 {[%emt 0:00:35]} 15. Bd2 {[%emt 0:01:19]} Nd7 {[%emt 0:11:52]} 16. Rac1 {[%emt 0:00:18]} Nc5 {[%emt 0:03:51]} 17. Bb1 {[%emt 0:00:46]} f5 {[%emt 0:02:12]} 18. exf5 {[%emt 0:00:08]} Bxf5 {[%emt 0:00:07]} 19. Bxf5 {[%emt 0:14:34]} Rxf5 {[%emt 0:00:07]} 20. f3 {[%emt 0:05:56]} Rc8 {[%emt 0:08:06]} 21. Rfd1 {[%emt 0:05:54]} Ne6 {[%emt 0:08:49]} 22. Qd3 {[%emt 0:01:32]} Rf6 {[%emt 0:02:09]} 23. Be3 {[%emt 0:00:34]} Nc7 {[%emt 0:05:41]} 24. b4 {[%emt 0:02:02]} Qa4 {[%emt 0:08:51]} 25. Rd2 {[%emt 0:11:45]} Kh8 {[%emt 0:03:08]} 26. Rcd1 {[%emt 0:05:16]} h6 {[%emt 0:02:50]} 27. Bf2 {[%emt 0:04:56]} Ne6 {[%emt 0:05:50]} 28. Bh4 {[%emt 0:03:43]} Nf4 {[%emt 0:01:59]} 29. Qe4 {[%emt 0:00:28]} Re6 {[%emt 0:03:37]} 30. Rxd6 {[%emt 0:02:05]} Rxd6 {[%emt 0:05:08]} 31. Rxd6 {[%emt 0:00:01]} Qxa3 {[%emt 0:00:08]} 32. Qxe5 {[%emt 0:04:07]} Qc1+ {[%emt 0:00:31]} 33. Be1 {[%emt 0:00:04]} Qxc4 {[%emt 0:00:35]} 34. g3 {[%emt 0:00:57]} Nd3 {[%emt 0:01:41]} 35. Rxh6+ {[%emt 0:01:57]} Kg8 {[%emt 0:00:10]} 36. Qe6+ {[%emt 0:00:10]} Qxe6 {[%emt 0:00:10]} 37. Rxe6 {[%emt 0:00:01]} Rc1 {[%emt 0:00:16]} 38. Kf1 {[%emt 0:00:00]} Rb1 {[%emt 0:00:27]} 39. Re3 {[%emt 0:01:16]} Nxe1 {[%emt 0:00:32]} 40. Rxe1 {[%emt 0:00:00]} Rxb4 {[%emt 0:00:00]} 41. h4 {[%emt 0:00:38]} a5 {[%emt 0:00:59]} 42. g4 {[%emt 0:03:48]} a4 {[%emt 0:03:15]} 43. Ke2 {[%emt 0:00:21]} b5 {[%emt 0:01:55]} 44. Kd3 {[%emt 0:01:43]} Rb3+ {[%emt 0:02:28]} 45. Kc2 {[%emt 0:00:08]} Rxf3 {[%emt 0:05:33]} 46. Rb1 Rb3 47. Rxb3 {[%emt 0:00:26]} axb3+ {[%emt 0:02:26]} 48. Kxb3 {[%emt 0:00:01]} Kf7 {[%emt 0:00:01]} 49. Kb4 {[%emt 0:00:23]} Kf6 {[%emt 0:00:21]} 50. Kxb5 {[%emt 0:00:05]} Ke5 {[%emt 0:00:04]} 51. Kc4 {[%emt 0:02:46]} Kf4 {[%emt 0:00:28]} 52. g5 {[%emt 0:00:11]} Kg4 {[%emt 0:00:09]} 53. Kd4 {[%emt 0:00:16]} Kxh4 {[%emt 0:01:16]} 54. g6 {[%emt 0:00:11]} Kg5 {[%emt 0:00:04]} 55. Ke3 {[%emt 0:00:19]} Kxg6 {[%emt 0:00:06]} 56. Kf2 {[%emt 0:00:19]} Kh5 {[%emt 0:00:49]} 57. Kg1 {[%emt 0:00:41]} Kg4 {[%emt 0:00:18]} 58. Kh1 {[%emt 0:00:14]} Kh3 {[%emt 0:02:32]} 59. Kg1 {[%emt 0:00:06]} g6 {[%emt 0:00:18]} 60. Kh1 {[%emt 0:00:27]} g5 {[%emt 0:00:09]} 0-1

[Event "IIFL Wealth 4th Mumbai GM"]
[Site "Mumbai"]
[Date "2019.01.04"]
[Round "6"]
[White "Surendran N"]
[Black "Raahul V S"]
[Result "1-0"]
[ECO "E98"]
[WhiteElo "2176"]
[BlackElo "2381"]
[Annotator "NA"]
[PlyCount "59"]
[EventDate "2018.12.30"]
[EventType "swiss"]
[EventCountry "IND"]
[SourceTitle "playchess.com"]
[Source "ChessBase"]
[SourceQuality "1"]
[TimeControl "40/5400+30:1800+30"]

1. d4 {[%emt 0:00:00]} Nf6 {[%emt 0:00:00]} 2. Nf3 {[%emt 0:00:00]} g6 {[%emt 0:00:00]} 3. c4 {[%emt 0:00:00]} Bg7 {[%emt 0:00:02]} 4. Nc3 {[%emt 0:00:00]} O-O {[%emt 0:00:03]} 5. e4 {[%emt 0:00:02]} d6 {[%emt 0:00:04]} 6. Be2 {[%emt 0:00:05]} e5 {[%emt 0:00:02]} 7. O-O {[%emt 0:00:06]} Nc6 {[%emt 0:00:02]} 8. d5 {[%emt 0:00:05]} Ne7 {[%emt 0:00:04]} 9. Ne1 {[%emt 0:00:05]} Nd7 {[%emt 0:00:21]} 10. Be3 {[%emt 0:00:05]} f5 {[%emt 0:00:04]} 11. f3 {[%emt 0:00:04]} f4 {[%emt 0:00:39]} 12. Bf2 {[%emt 0:00:02]} g5 {[%emt 0:00:05]} 13. Rc1 {[%emt 0:00:05]} h5 {[%emt 0:04:35]} 14. c5 {[%emt 0:01:27]} dxc5 {[%emt 0:02:41]} 15. Nd3 {[%emt 0:06:43]} b6 {[%emt 0:03:02]} 16. b4 {[%emt 0:00:11]} cxb4 {[%emt 0:05:13]} 17. Nb5 {[%emt 0:01:16]} Nf6 {[%emt 0:07:52]} 18. Nxc7 {[%emt 0:02:27]} Rb8 {[%emt 0:00:05]} 19. Nxb4 {[%emt 0:05:01]} Bb7 {[%emt 0:03:29]} 20. d6 {[%emt 0:00:58]} Nc8 {[%emt 0:00:14]} 21. Qb3+ {[%emt 0:01:14]} Kh8 {[%emt 0:02:35]} 22. Ne6 {[%emt 0:00:06]} Qxd6 {[%emt 0:00:07]} 23. Rfd1 {[%emt 0:00:11]} Qe7 {[%emt 0:00:20]} 24. Rc7 {[%emt 0:00:59]} Qe8 {[%emt 0:01:31]} 25. Nxg7 {[%emt 0:00:45]} Qg6 {[%emt 0:00:11]} 26. Ne6 {[%emt 0:00:25]} Rg8 {[%emt 0:00:39]} 27. Nd8 {[%emt 0:00:15]} Nd6 {[%emt 0:01:09]} 28. Rxd6 {[%emt 0:00:42]} Rbxd8 {[%emt 0:00:26]} 29. Rxd8 {[%emt 0:00:17]} Rxd8 {[%emt 0:00:04]} 30. Rxb7 {[%emt 0:00:46]} 1-0

[Event "IIFL Wealth 4th Mumbai GM"]
[Site "Mumbai"]
[Date "2019.01.04"]
[Round "6"]
[White "Subrota, Biswas"]
[Black "Tarun Kanyamarala"]
[Result "1/2-1/2"]
[ECO "A08"]
[WhiteElo "2171"]
[BlackElo "2120"]
[Annotator "NA"]
[PlyCount "116"]
[EventDate "2018.12.30"]
[EventType "swiss"]
[EventCountry "IND"]
[SourceTitle "playchess.com"]
[Source "ChessBase"]
[SourceQuality "1"]
[TimeControl "40/5400+30:1800+30"]

1. Nf3 {[%emt 0:00:40]} d5 {[%emt 0:00:00]} 2. g3 {[%emt 0:00:16]} Nf6 {[%emt 0:00:45]} 3. Bg2 {[%emt 0:00:01]} e6 {[%emt 0:00:56]} 4. O-O {[%emt 0:00:05]} c5 {[%emt 0:01:03]} 5. d3 {[%emt 0:00:15]} Be7 {[%emt 0:00:19]} 6. Nbd2 {[%emt 0:03:11]} Nc6 {[%emt 0:00:07]} 7. e4 {[%emt 0:02:13]} O-O {[%emt 0:00:30]} 8. Re1 {[%emt 0:03:29]} b5 {[%emt 0:02:49]} 9. e5 {[%emt 0:04:59]} Nd7 {[%emt 0:00:12]} 10. Nf1 {[%emt 0:00:05]} Qc7 {[%emt 0:01:57]} 11. Qe2 {[%emt 0:05:45]} Bb7 {[%emt 0:03:05]} 12. h4 {[%emt 0:02:27]} Rfc8 {[%emt 0:06:24]} 13. N1h2 {[%emt 0:03:43]} Nd4 {[%emt 0:15:54]} 14. Qd1 {[%emt 0:05:18]} Nxf3+ {[%emt 0:06:59]} 15. Nxf3 {[%emt 0:00:38]} d4 {[%emt 0:01:18]} 16. Qe2 {[%emt 0:08:03]} Qb6 {[%emt 0:07:13]} 17. c3 {[%emt 0:02:54]} dxc3 {[%emt 0:03:06]} 18. bxc3 {[%emt 0:01:17]} b4 {[%emt 0:01:46]} 19. Rb1 {[%emt 0:03:34]} a5 {[%emt 0:06:41]} 20. Bg5 {[%emt 0:09:00]} Bxg5 {[%emt 0:06:22]} 21. Nxg5 {[%emt 0:00:02]} h6 {[%emt 0:06:06]} 22. Bxb7 {[%emt 0:02:30]} Qxb7 {[%emt 0:00:42]} 23. Ne4 {[%emt 0:01:54]} Qd5 {[%emt 0:12:45]} 24. f4 {[%emt 0:02:16]} bxc3 {[%emt 0:03:15]} 25. Rbc1 {[%emt 0:00:13]} Nb6 {[%emt 0:04:27]} 26. Rxc3 {[%emt 0:00:41]} Rab8 {[%emt 0:00:56]} 27. Rec1 {[%emt 0:03:17]} Na4 {[%emt 0:02:13]} 28. Rc4 {[%emt 0:02:12]} Rb4 {[%emt 0:01:59]} 29. Kh2 {[%emt 0:11:17]} Rcb8 {[%emt 0:01:48]} 30. R1c2 {[%emt 0:00:03]} Rxc4 {[%emt 0:02:05]} 31. dxc4 {[%emt 0:06:02]} Qd4 {[%emt 0:00:12]} 32. Rd2 {[%emt 0:00:14]} Rb2 {[%emt 0:00:15]} 33. Rxb2 {[%emt 0:00:42]} Nxb2 {[%emt 0:01:42]} 34. Nd6 {[%emt 0:02:04]} Nd1 {[%emt 0:00:36]} 35. Nb5 {[%emt 0:04:25]} Qb2 {[%emt 0:00:04]} 36. Qxb2 {[%emt 0:00:29]} Nxb2 {[%emt 0:00:05]} 37. Nd6 {[%emt 0:00:03]} a4 38. Kg1 {[%emt 0:00:58]} a3 {[%emt 0:00:47]} 39. Kf1 {[%emt 0:02:51]} Nd1 {[%emt 0:00:18]} 40. Ke1 {[%emt 0:00:00]} Nc3 {[%emt 0:00:00]} 41. Kd2 {[%emt 0:07:03]} Nxa2 {[%emt 0:05:25]} 42. Nb5 {[%emt 0:10:43]} Nb4 {[%emt 0:05:01]} 43. Nxa3 {[%emt 0:00:02]} f6 {[%emt 0:07:46]} 44. exf6 {[%emt 0:01:27]} gxf6 {[%emt 0:00:05]} 45. Nb5 {[%emt 0:05:21]} f5 {[%emt 0:00:56]} 46. Nd6 {[%emt 0:05:23]} Kg7 {[%emt 0:03:21]} 47. Kc3 {[%emt 0:03:26]} Kf6 {[%emt 0:05:31]} 48. Nb7 {[%emt 0:00:42]} Na6 {[%emt 0:00:38]} 49. Nd8 {[%emt 0:02:17]} e5 {[%emt 0:02:18]} 50. fxe5+ {[%emt 0:01:10]} Kxe5 {[%emt 0:00:06]} 51. Nf7+ {[%emt 0:00:21]} Kf6 {[%emt 0:00:09]} 52. Nxh6 {[%emt 0:00:33]} Kg6 {[%emt 0:00:14]} 53. g4 {[%emt 0:00:32]} fxg4 {[%emt 0:02:18]} 54. Nxg4 {[%emt 0:00:03]} Kh5 {[%emt 0:00:06]} 55. Nf6+ {[%emt 0:00:39]} Kxh4 {[%emt 0:00:08]} 56. Kb3 {[%emt 0:00:51]} Kg5 {[%emt 0:00:28]} 57. Nd7 {[%emt 0:00:06]} Kf5 {[%emt 0:01:53]} 58. Ka4 {[%emt 0:00:15]} Ke4 {[%emt 0:00:54]} 1/2-1/2

[Event "IIFL Wealth 4th Mumbai GM"]
[Site "Mumbai"]
[Date "2019.01.04"]
[Round "6"]
[White "Vantika Agrawal"]
[Black "Ameir, Moheb"]
[Result "1/2-1/2"]
[ECO "D77"]
[WhiteElo "2143"]
[BlackElo "2327"]
[Annotator "NA"]
[PlyCount "121"]
[EventDate "2018.12.30"]
[EventType "swiss"]
[EventCountry "IND"]
[SourceTitle "playchess.com"]
[Source "ChessBase"]
[SourceQuality "1"]
[TimeControl "40/5400+30:1800+30"]

1. d4 {[%emt 0:00:59]} Nf6 {[%emt 0:00:00]} 2. c4 {[%emt 0:00:25]} g6 {[%emt 0:00:10]} 3. g3 {[%emt 0:00:32]} Bg7 {[%emt 0:00:08]} 4. Bg2 {[%emt 0:00:05]} O-O {[%emt 0:00:30]} 5. Nf3 {[%emt 0:00:08]} d5 {[%emt 0:00:14]} 6. O-O {[%emt 0:00:25]} Nc6 {[%emt 0:00:14]} 7. Nbd2 {[%emt 0:04:48]} dxc4 {[%emt 0:02:50]} 8. Nxc4 {[%emt 0:02:26]} a5 {[%emt 0:00:16]} 9. Nce5 {[%emt 0:29:50]} Nb4 {[%emt 0:13:09]} 10. a3 {[%emt 0:14:23]} Nbd5 {[%emt 0:01:09]} 11. Re1 {[%emt 0:04:45]} a4 {[%emt 0:03:48]} 12. e4 {[%emt 0:05:32]} Nb6 {[%emt 0:00:10]} 13. h3 {[%emt 0:02:22]} c6 {[%emt 0:15:22]} 14. Nd3 {[%emt 0:03:32]} Ne8 {[%emt 0:04:59]} 15. Nc5 {[%emt 0:08:45]} Nc7 {[%emt 0:01:41]} 16. Bf1 {[%emt 0:03:08]} f5 {[%emt 0:08:55]} 17. exf5 {[%emt 0:01:37]} Rxf5 {[%emt 0:05:04]} 18. Bd3 {[%emt 0:05:17]} Rf8 {[%emt 0:02:07]} 19. Bg5 {[%emt 0:01:31]} Ncd5 {[%emt 0:09:57]} 20. Kg2 {[%emt 0:02:36]} Qd6 {[%emt 0:11:01]} 21. Qe2 {[%emt 0:02:43]} Bf6 {[%emt 0:05:26]} 22. Bh6 {[%emt 0:00:53]} Rf7 {[%emt 0:04:55]} 23. Rac1 {[%emt 0:01:12]} Bg7 {[%emt 0:02:12]} 24. Bxg7 {[%emt 0:00:35]} Kxg7 {[%emt 0:00:50]} 25. Ng5 {[%emt 0:00:50]} Rf6 {[%emt 0:02:35]} 26. Nge4 {[%emt 0:00:38]} Qc7 {[%emt 0:00:00]} 27. Nxf6 {[%emt 0:00:11]} exf6 {[%emt 0:00:01]} 28. Qf3 {[%emt 0:01:47]} Qf7 {[%emt 0:02:48]} 29. Re2 {[%emt 0:00:38]} Bd7 {[%emt 0:01:26]} 30. Nxb7 {[%emt 0:00:56]} Bxh3+ {[%emt 0:00:10]} 31. Kxh3 {[%emt 0:00:05]} Qxb7 {[%emt 0:00:03]} 32. Kg2 {[%emt 0:00:32]} Rf8 {[%emt 0:01:43]} 33. Re6 {[%emt 0:01:07]} Ne7 {[%emt 0:01:47]} 34. Re2 {[%emt 0:01:06]} Nbd5 {[%emt 0:00:48]} 35. Be4 {[%emt 0:00:19]} f5 {[%emt 0:00:19]} 36. Bxd5 {[%emt 0:00:12]} Nxd5 {[%emt 0:00:01]} 37. Rec2 {[%emt 0:00:55]} Rf6 {[%emt 0:00:33]} 38. Rc4 {[%emt 0:00:41]} h5 {[%emt 0:00:21]} 39. Rxc6 {[%emt 0:00:31]} Rxc6 {[%emt 0:00:10]} 40. Qxd5 {[%emt 0:00:00]} Rb6 {[%emt 0:00:00]} 41. Qxb7+ {[%emt 0:11:48]} Rxb7 42. Rc4 {[%emt 0:03:02]} Rxb2 {[%emt 0:01:08]} 43. Rxa4 {[%emt 0:00:07]} Rb3 {[%emt 0:01:29]} 44. Ra7+ {[%emt 0:06:11]} Kf6 {[%emt 0:00:08]} 45. Ra6+ {[%emt 0:02:37]} Kf7 {[%emt 0:00:22]} 46. d5 {[%emt 0:02:23]} Rd3 {[%emt 0:00:22]} 47. d6 {[%emt 0:00:58]} g5 {[%emt 0:01:34]} 48. a4 {[%emt 0:03:09]} Ke6 {[%emt 0:02:25]} 49. d7+ {[%emt 0:00:35]} Kxd7 {[%emt 0:00:42]} 50. Rh6 {[%emt 0:00:55]} h4 {[%emt 0:01:22]} 51. gxh4 {[%emt 0:00:26]} gxh4 {[%emt 0:00:01]} 52. Rxh4 {[%emt 0:00:09]} Ra3 {[%emt 0:00:12]} 53. Rb4 {[%emt 0:01:07]} Ke6 {[%emt 0:00:30]} 54. f3 {[%emt 0:01:05]} Kf6 {[%emt 0:00:13]} 55. Kg3 {[%emt 0:00:31]} Kg5 {[%emt 0:00:38]} 56. Rc4 {[%emt 0:00:53]} Ra2 {[%emt 0:00:15]} 57. Rb4 {[%emt 0:01:04]} Ra1 {[%emt 0:00:34]} 58. f4+ {[%emt 0:00:56]} Kh5 {[%emt 0:00:13]} 59. Kf3 {[%emt 0:00:38]} Ra3+ {[%emt 0:00:48]} 60. Ke2 {[%emt 0:00:09]} Kg4 {[%emt 0:00:13]} 61. Kd2 {[%emt 0:01:13]} 1/2-1/2